bitfinex/quotes_ETHUSD_20240822
["timestamp","ask_amount","ask_price","bid_price","bid_amount"]
[1724288587184,3.80525,2628.0,2627.4,9.94482]
[1724288587388,3.80525,2628.0,2627.4,6.13884]
[1724288588083,3.80493,2628.2,2627.5,3.80578]
[1724288588331,7.990423,2628.2,2627.5,3.80578]
[1724288588548,3.80507,2628.1,2627.5,3.80578]
[1724288588833,3.80507,2628.1,2627.3,3.80618]
[1724288588834,3.80542,2627.9,2627.3,3.80618]
[1724288589180,3.80548,2627.8,2627.1,6.80637]
[1724288589381,4.4574073,2628.0,2627.3,3.80609]
[1724288589636,3.80532,2627.9,2627.3,3.80609]
[1724288589783,3.80532,2627.9,2627.4,3.80601]
[1724288590152,0.6522273,2628.0,2627.5,3.8058]
[1724288590302,6.14163,2628.1,2627.6,3.80573]
[1724288590763,6.14163,2628.1,2627.4,7.61186]
[1724288590957,6.14163,2628.1,2627.4,3.80591]
[1724288591293,9.9468,2628.1,2627.4,3.80591]
[1724288591458,4.8379093,2628.0,2627.4,7.61186]
[1724288591657,1.0327293,2628.0,2627.5,3.80589]
[1724288591859,1.0327293,2628.0,2627.6,3.80574]
[1724288592183,1.0327293,2628.0,2627.4,3.80591]
[1724288592184,6.14165,2628.1,2627.4,3.80591]
[1724288592341,0.380493,2628.2,2627.7,3.8056]
[1724288592542,0.39764672,2628.0,2627.7,3.8056]
[1724288592857,0.39764672,2628.0,2627.9,3.80531]
[1724288593070,0.39764672,2628.0,2627.7,3.8056]
[1724288593477,0.39764672,2628.0,2627.7,3.8055]
[1724288594489,0.39764672,2628.0,2627.6,3.80563]
[1724288594801,0.39764672,2628.0,2627.7,3.80551]
[1724288595782,0.39764672,2628.0,2627.4,3.80595]
[1724288596050,0.39764672,2628.0,2627.6,3.80566]
[1724288596775,0.39764672,2628.0,2627.2,7.49]
[1724288596776,0.81790039,2628.0,2627.2,11.29625]
[1724288596983,3.80547,2627.8,2627.2,11.29625]
[1724288597187,6.13026,2627.7,2627.2,7.49]
[1724288597491,0.613026,2627.6,2627.2,7.49]
[1724288597801,0.613026,2627.6,2626.4,11.29744]
[1724288597802,2.4634,2627.2,2626.4,11.29744]
[1724288598000,2.4634,2627.2,2626.4,3.80744]
[1724288598219,3.80622,2627.3,2626.6,3.8071]
[1724288598397,4.656042,2627.3,2626.6,3.8071]
[1724288598557,4.656042,2627.3,2626.6,7.61419]
[1724288598766,0.849822,2627.3,2626.8,3.8069]
[1724288598994,0.849822,2627.3,2626.8,3.80681]
[1724288599209,6.26935,2627.5,2626.8,3.80679]
[1724288599420,3.80595,2627.5,2626.8,3.80679]
[1724288599563,2.4057,2627.8,2626.6,2.4155]
[1724288599915,9.21107,2627.9,2627.0,3.80652]
[1724288600207,3.80584,2627.6,2627.0,3.80652]
[1724288600578,7.85201,2627.7,2627.0,3.80652]
[1724288600762,0.404628,2627.6,2627.0,3.80652]
[1724288601674,2.4057,2627.9,2627.2,3.80633]
[1724288601877,3.81790039,2628.0,2627.0,2.3616]
[1724288601878,0.81790039,2628.0,2627.6,3.80575]
[1724288602077,0.39764672,2628.0,2627.6,3.80575]
[1724288602425,4.20294672,2628.0,2627.4,3.80593]
[1724288602711,3.80557,2627.8,2627.2,3.80625]
[1724288603461,0.39764672,2628.0,2627.5,3.8058]
[1724288603911,0.39764672,2628.0,2627.6,3.80573]
[1724288604118,0.39764672,2628.0,2627.8,3.80545]
[1724288604411,0.39764672,2628.0,2627.6,3.80573]
[1724288604714,0.39764672,2628.0,2627.4,7.61191]
[1724288604893,0.81790039,2628.0,2627.5,3.80588]
[1724288605062,0.39764672,2628.0,2627.5,3.80588]
[1724288605408,0.39764672,2628.0,2627.6,3.80566]
[1724288605645,0.39764672,2628.0,2627.8,3.80545]
[1724288605853,0.39764672,2628.0,2627.6,7.6113]
[1724288606146,0.39764672,2628.0,2627.7,3.80552]
[1724288606645,0.39764672,2628.0,2627.6,0.76113]
[1724288606854,0.39764672,2628.0,2627.8,3.80533]
[1724288607348,0.39764672,2628.0,2627.8,7.61069]
[1724288607648,0.39764672,2628.0,2627.8,3.80533]
[1724288607854,0.39764672,2628.0,2627.9,3.80531]
[1724288608216,0.39764672,2628.0,2627.8,7.6107]
[1724288608413,0.39764672,2628.0,2627.8,3.80533]
[1724288609144,0.39764672,2628.0,2627.8,7.61069]
[1724288609387,0.39764672,2628.0,2627.8,3.80533]
[1724288611351,0.39764672,2628.0,2627.9,3.80531]
[1724288611702,0.39764672,2628.0,2627.8,3.80533]
[1724288612145,0.39764672,2628.0,2627.6,6.10174]
[1724288612347,0.39764672,2628.0,2627.7,3.80559]
[1724288612646,0.39764672,2628.0,2627.5,3.80589]
[1724288613348,4.20281672,2628.0,2627.4,7.61192]
[1724288613747,4.20281672,2628.0,2627.5,3.80587]
[1724288614763,0.39764672,2628.0,2627.6,3.80573]
[1724288617007,3.80555,2627.8,2627.2,3.8062]
[1724288617203,3.80575,2627.7,2627.0,3.80653]
[1724288617402,3.80575,2627.7,2627.1,3.80642]
[1724288617679,3.80575,2627.7,2627.0,3.80653]
[1724288617680,0.39759805,2627.7,2627.2,7.61254]
[1724288617818,0.39759805,2627.7,2627.2,3.80624]
[1724288618202,0.39759805,2627.7,2627.2,7.61249]
[1724288618632,0.39759805,2627.7,2627.2,3.80624]
[1724288618820,0.39759805,2627.7,2627.2,7.61249]
[1724288619355,0.39759805,2627.7,2627.4,3.80595]
[1724288619817,0.39759805,2627.7,2627.4,7.6119]
[1724288620024,0.39759805,2627.7,2627.4,3.80595]
[1724288621972,0.39759805,2627.7,2627.2,3.80624]
[1724288622362,0.39759805,2627.7,2626.9,12.9431]
[1724288622568,0.39759805,2627.7,2627.5,3.8058]
[1724288622728,0.39759805,2627.7,2627.6,7.6115]
[1724288624578,0.39759805,2627.7,2627.6,3.80575]
[1724288626139,0.39759805,2627.7,2627.6,7.6115]
[1724288626956,9.24078,2628.4,2627.4,6.06349]
[1724288626957,6.24078,2628.4,2627.8,3.80538]
[1724288627259,0.39756719,2628.1,2627.8,3.80538]
[1724288627459,0.39756719,2628.1,2627.6,3.80561]
[1724288629514,3.80534,2627.9,2627.4,7.49]
[1724288629714,3.80534,2627.9,2627.4,11.29599]
[1724288629964,3.80534,2627.9,2627.5,3.80585]
[1724288629965,0.65480072,2627.9,2627.5,3.80585]
[1724288631208,0.39756719,2628.1,2627.7,3.8056]
[1724288631731,0.39756719,2628.1,2627.9,3.80531]
[1724288632559,0.39756719,2628.1,2627.7,3.80553]
[1724288632560,0.39756719,2628.1,2627.7,7.611]
[1724288632717,0.39756719,2628.1,2627.8,3.80545]
[1724288634559,0.39756719,2628.1,2628.0,3.80517]
[1724288634866,0.39756719,2628.1,2628.0,10.857557]
[1724288635068,3.80366,2629.1,2628.3,3.80461]
[1724288635250,5.9497,2629.2,2628.5,3.80442]
[1724288635251,0.39752262,2628.7,2628.5,3.80442]
[1724288635418,6.23414,2629.2,2628.6,3.80427]
[1724288635616,0.623414,2629.2,2628.7,3.80403]
[1724288635816,3.80292,2629.6,2629.0,3.8036]
[1724288636029,0.39746318,2629.3,2629.2,3.80343]
[1724288637240,0.39746318,2629.3,2629.0,6.2656]
[1724288637440,0.79481191,2629.3,2629.1,3.80358]
[1724288637674,0.79481191,2629.3,2629.1,3.80348]
[1724288637675,0.39746318,2629.3,2629.1,3.80348]
[1724288637972,3.80236,2630.0,2629.2,3.80343]
[1724288638145,0.39742918,2629.6,2629.4,3.80305]
[1724288638350,3.80236,2630.0,2629.4,3.80305]
[1724288638576,0.380236,2629.9,2629.2,3.80343]
[1724288638774,0.39742243,2629.6,2629.2,7.60677]
[1724288638930,0.380236,2629.9,2629.3,3.80328]
[1724288639131,0.39742078,2629.6,2629.4,3.80313]
[1724288639744,0.39742078,2629.6,2629.4,7.60618]
[1724288640073,0.39742078,2629.6,2629.4,3.80305]
[1724288640637,0.39742078,2629.6,2629.5,3.803]
[1724288641953,0.39742078,2629.6,2629.5,7.606]
[1724288642396,0.39742078,2629.6,2629.5,10.0402]
[1724288642690,3.80175,2630.4,2629.8,3.80253]
[1724288642891,0.39741023,2630.1,2629.8,3.80253]
[1724288643241,0.39741023,2630.1,2629.8,7.60501]
[1724288643455,0.39741023,2630.1,2629.9,3.80233]
[1724288644497,0.39741023,2630.1,2629.8,3.80248]
[1724288644801,0.39741023,2630.1,2629.9,3.80233]
[1724288645094,0.39741023,2630.1,2630.0,3.80228]
[1724288645871,0.39741023,2630.1,2630.0,7.60456]
[1724288646214,0.39741023,2630.1,2630.0,3.80228]
[1724288647353,0.39741023,2630.1,2630.0,6.17798]
[1724288647701,0.39741023,2630.1,2630.0,7.17601]
[1724288648290,6.0525,2630.8,2630.2,3.8019]
[1724288648469,3.8012,2630.8,2630.2,3.8019]
[1724288648674,0.39744,2630.5,2630.2,3.8019]
[1724288649095,0.39744,2630.5,2630.0,7.1759]
[1724288649288,0.39744,2630.5,2630.0,6.17787]
[1724288649507,0.39744,2630.5,2630.0,3.80217]
[1724288649508,4.199,2630.5,2630.0,3.80217]
[1724288651235,0.39744,2630.5,2630.0,7.60436]
[1724288651398,0.39744,2630.5,2630.0,3.80217]
[1724288651602,0.39744,2630.5,2629.7,3.80267]
[1724288651603,1.066034,2630.5,2629.7,3.80267]
[1724288651802,1.066034,2630.5,2629.7,3.80269]
[1724288652430,3.80181,2630.4,2629.8,3.80255]
[1724288652601,3.80194,2630.3,2629.6,3.80274]
[1724288653119,3.80194,2630.3,2629.7,3.80266]
[1724288653320,3.80194,2630.3,2629.0,7.49]
[1724288653321,2.2978,2630.2,2629.0,7.49]
[1724288653503,2.2978,2630.2,2629.1,3.80357]
[1724288653504,3.80251,2629.9,2629.1,3.80357]
[1724288653703,3.80251,2629.9,2629.3,3.80318]
[1724288655238,3.80266,2629.8,2629.1,8.236997]
[1724288655553,4.563177,2629.8,2629.2,3.80333]
[1724288656616,0.760517,2629.8,2629.3,3.80327]
[1724288656869,3.80251,2629.9,2629.3,7.60646]
[1724288657051,3.80251,2629.9,2629.3,3.80319]
[1724288657631,7.60504,2629.9,2629.3,3.80319]
[1724288658730,3.80257,2629.8,2629.3,3.80319]
[1724288659717,3.80257,2629.8,2628.7,10.49]
[1724288659718,3.80337,2629.3,2628.7,7.49]
[1724288659919,3.80363,2629.1,2628.5,23.24436]
[1724288660178,3.80375,2629.0,2628.5,23.24436]
[1724288660465,3.80363,2629.1,2628.5,23.24436]
[1724288661080,3.80336,2629.3,2628.5,23.24436]
[1724288661219,3.519,2629.5,2628.7,3.80407]
[1724288661220,3.80303,2629.5,2628.7,3.80407]
[1724288661421,3.80303,2629.5,2629.0,3.80371]
[1724288661673,2.4045,2629.6,2629.1,3.80357]
[1724288661875,13.00955,2629.9,2629.2,3.80334]
[1724288662179,6.20694,2629.9,2629.2,3.80335]
[1724288662377,6.20694,2629.9,2629.2,7.6067]
[1724288662667,7.266021,2629.9,2629.2,3.80335]
[1724288663772,7.266021,2629.9,2629.3,3.80328]
[1724288663939,0.39749088,2629.8,2629.3,3.80328]
[1724288664140,0.39749088,2629.8,2629.4,3.80312]
[1724288664924,0.39749088,2629.8,2629.4,3.80305]
[1724288665527,0.39749088,2629.8,2629.4,7.60607]
[1724288665783,0.39749088,2629.8,2629.4,3.80302]
[1724288667479,0.39749088,2629.8,2629.3,2.4953]
[1724288667648,0.39749088,2629.8,2629.3,6.29859]
[1724288669164,0.39749088,2629.8,2629.4,3.80304]
[1724288671357,0.39749088,2629.8,2629.4,1.010172]
[1724288671572,0.39749088,2629.8,2629.7,3.80271]
[1724288674385,0.39749088,2629.8,2629.5,3.8029]
[1724288674771,0.39749088,2629.8,2629.7,3.80271]
[1724288674997,0.39749088,2629.8,2629.7,7.60542]
[1724288675551,0.39749088,2629.8,2629.7,9.92932]
[1724288675758,0.39749088,2629.8,2629.7,10.922252]
[1724288676602,0.39749088,2629.8,2629.7,7.119542]
[1724288676783,0.39749088,2629.8,2629.7,3.80271]
[1724288677908,0.39749088,2629.8,2629.4,3.80311]
[1724288678099,0.39749088,2629.8,2629.5,3.803]
[1724288678415,0.39749088,2629.8,2629.7,3.80271]
[1724288678974,0.39749088,2629.8,2629.5,4.563481]
[1724288679370,0.39749088,2629.8,2629.6,3.80285]
[1724288679570,0.39749088,2629.8,2629.5,0.760611]
[1724288679784,0.39749088,2629.8,2629.7,3.80271]
[1724288679985,0.39749088,2629.8,2629.7,7.60542]
[1724288684212,0.39749088,2629.8,2629.7,7.55542]
[1724288684415,6.8012,2630.8,2630.1,3.80207]
[1724288684614,3.80178,2630.4,2629.8,3.80247]
[1724288684829,0.39740598,2630.2,2629.8,3.80247]
[1724288685027,6.18508,2630.4,2629.8,3.80247]
[1724288685331,4.19926674,2630.3,2629.8,3.80247]
[1724288685902,0.39741674,2630.3,2629.8,3.80247]
[1724288686119,0.39741674,2630.3,2629.8,7.60494]
[1724288686590,0.39741674,2630.3,2629.9,3.8024]
[1724288687099,0.39741674,2630.3,2629.8,7.60493]
[1724288687479,0.39741674,2630.3,2629.9,3.80238]
[1724288689323,0.39741674,2630.3,2630.0,3.80226]
[1724288690829,0.39741674,2630.3,2629.6,9.84]
[1724288691126,0.39741674,2630.3,2630.1,7.60408]
[1724288691290,0.39741674,2630.3,2630.2,3.80199]
[1724288692395,0.39741674,2630.3,2630.2,7.60398]
[1724288692577,6.21478,2631.2,2630.5,3.80142]
[1724288692780,0.39745835,2630.9,2630.6,3.8014]
[1724288694229,0.39745835,2630.9,2630.6,3.80131]
[1724288694830,0.39745835,2630.9,2630.8,3.80112]
[1724288695207,2.4142,2631.5,2630.8,7.60224]
[1724288695424,3.035615,2631.5,2630.9,3.80092]
[1724288695579,0.39752589,2631.2,2630.9,3.80092]
[1724288696309,0.39752589,2631.2,2630.8,3.87713383]
[1724288696310,0.39752589,2631.2,2630.8,3.80112]
[1724288697541,0.39752589,2631.2,2630.8,7.60214]
[1724288697703,0.39752589,2631.2,2630.8,3.80102]
[1724288698493,2.3368,2631.1,2630.6,3.80131]
[1724288698830,2.3368,2631.1,2630.2,7.49]
[1724288698831,3.80084,2631.0,2630.2,7.49]
[1724288698985,7.60179,2631.0,2630.3,3.80183]
[1724288699192,3.80084,2631.0,2630.4,3.80169]
[1724288699553,0.613764,2630.9,2630.4,3.80169]
[1724288699836,2.3368,2631.1,2630.4,3.8016]
[1724288700005,3.80089,2631.0,2630.2,7.49]
[1724288700206,3.80089,2631.0,2630.3,19.44]
[1724288700656,2.3368,2631.1,2630.4,3.80157]
[1724288700947,0.65348959,2631.0,2630.3,19.44]
[1724288701090,2.3368,2630.8,2630.3,23.24175]
[1724288701292,2.3368,2630.8,2630.4,3.80168]
[1724288701819,3.80092,2631.0,2630.4,3.80168]
[1724288702540,3.80101,2630.9,2630.4,3.80168]
[1724288702891,6.16077,2631.1,2630.4,3.80168]
[1724288703090,1.03589159,2631.0,2630.4,3.8016]
[1724288703545,1.03589159,2631.0,2630.5,3.80146]
[1724288703691,1.03589159,2631.0,2630.6,3.80131]
[1724288703894,2.36,2631.1,2630.6,3.80131]
[1724288704509,2.36,2631.1,2630.3,19.44]
[1724288704839,3.80106,2630.9,2630.3,23.24183]
[1724288705135,3.80094,2631.0,2630.4,3.80167]
[1724288705439,4.83684659,2631.0,2630.3,23.24183]
[1724288705606,6.22507,2630.9,2630.3,23.24183]
[1724288706026,6.22507,2630.9,2630.3,3.80183]
[1724288706210,2.424,2630.9,2630.4,3.80167]
[1724288707145,2.424,2630.9,2630.5,3.80155]
[1724288707314,4.19810589,2631.2,2630.6,3.80131]
[1724288707642,4.19810589,2631.2,2630.5,3.80146]
[1724288707943,4.19810589,2631.2,2630.5,3.80145]
[1724288708130,4.19810589,2631.2,2630.6,3.8014]
[1724288708642,4.19810589,2631.2,2630.7,3.80124]
[1724288708812,4.19810589,2631.2,2630.5,3.80143]
[1724288709013,3.801,2630.9,2630.3,3.80176]
[1724288709255,3.80169,2630.5,2629.9,3.80234]
[1724288709399,3.519,2630.7,2630.1,3.8021]
[1724288709709,3.80127,2630.7,2630.1,7.60414]
[1724288709909,3.80127,2630.7,2629.8,6.11693]
[1724288709910,1.04841166,2630.7,2629.8,6.11693]
[1724288710101,2.4846,2630.8,2629.8,6.11693]
[1724288710493,2.4846,2630.8,2630.2,3.80186]
[1724288710698,2.4846,2630.8,2630.2,7.60374]
[1724288710896,0.39761567,2630.7,2630.3,3.80181]
[1724288711138,1.06594324,2630.7,2630.3,3.80181]
[1724288711345,1.06594324,2630.7,2630.4,3.80168]
[1724288711498,0.39761567,2630.7,2630.4,3.80168]
[1724288712552,0.39761567,2630.7,2630.1,3.80201]
[1724288712753,2.3482,2630.6,2630.0,3.8022]
[1724288712904,2.3482,2630.6,2629.8,3.80249]
[1724288712905,3.80179,2630.4,2629.8,3.80249]
[1724288713102,3.80193,2630.3,2629.6,6.80274]
[1724288713304,2.3092,2630.1,2629.4,2.3741]
[1724288713509,3.80237,2630.0,2629.3,23.24324]
[1724288713707,3.80237,2630.0,2629.3,3.80324]
[1724288713708,3.80243,2629.9,2629.3,3.80324]
[1724288715167,4.03329,2630.0,2629.4,3.80311]
[1724288716488,2.3092,2629.7,2629.0,11.29363]
[1724288716629,4.414126,2629.6,2629.0,11.29363]
[1724288716824,8.217116,2629.6,2629.0,11.29363]
[1724288717153,4.414126,2629.6,2629.0,11.29363]
[1724288717339,2.3092,2629.4,2628.6,30.73423]
[1724288717538,2.3092,2629.4,2628.6,11.29423]
[1724288717727,3.80345,2629.2,2628.6,11.29421]
[1724288718240,3.80345,2629.2,2628.6,15.09842]
[1724288718573,3.80345,2629.2,2628.6,11.29421]
[1724288718934,3.80345,2629.2,2628.6,7.49]
[1724288719164,3.8037,2629.1,2628.6,7.49]
[1724288719731,0.58282,2629.3,2628.6,7.49]
[1724288719956,3.80353,2629.2,2628.6,7.49]
[1724288720741,7.60708,2629.2,2628.6,7.49]
[1724288720962,3.80353,2629.2,2628.5,3.80436]
[1724288721358,3.80353,2629.2,2628.3,15.09932]
[1724288721359,3.80381,2629.0,2628.3,15.09932]
[1724288721658,3.80381,2629.0,2628.5,3.80439]
[1724288721860,7.60706,2629.2,2628.5,3.80439]
[1724288722175,7.60706,2629.2,2628.6,3.80427]
[1724288722176,3.80351,2629.2,2628.6,3.80427]
[1724288722351,7.60706,2629.2,2628.5,3.80431]
[1724288722567,3.80351,2629.2,2628.5,9.0834642]
[1724288722800,3.80362,2629.1,2628.5,5.2791342]
[1724288726217,0.39777878,2629.0,2628.5,5.2791342]
[1724288727858,0.39777878,2629.0,2628.6,7.00712662]
[1724288728695,0.39777878,2629.0,2628.7,3.80412]
[1724288728874,0.39777878,2629.0,2628.9,3.80387]
[1724288729071,3.80287,2629.6,2629.1,3.80357]
[1724288729275,0.39780917,2629.4,2629.1,3.80357]
[1724288730395,0.39780917,2629.4,2629.1,4.812294]
[1724288730763,0.39780917,2629.4,2629.1,1.008724]
[1724288732421,0.089681,2629.3,2629.1,1.008724]
[1724288733968,0.089681,2629.3,2629.1,4.812224]
[1724288734667,0.089681,2629.3,2628.9,6.28358]
[1724288734898,0.089681,2629.3,2628.9,2.4798]
[1724288735103,0.089681,2629.3,2628.7,3.80408]
[1724288735316,0.089681,2629.3,2628.4,3.0]
[1724288735613,7.60795,2628.9,2628.4,2.4553]
[1724288735824,3.80396,2628.9,2628.4,2.4553]
[1724288735964,0.08746851,2628.8,2628.2,2.4553]
[1724288736160,3.80425,2628.7,2628.2,2.4553]
[1724288736579,0.08725516,2628.6,2628.2,2.4553]
[1724288737208,3.80419,2628.7,2628.2,2.4553]
[1724288737413,0.08716317,2628.5,2628.2,2.4553]
[1724288737712,0.0869901,2628.4,2628.2,2.4553]
[1724288738005,3.80419,2628.7,2628.2,2.4553]
[1724288738164,0.380391,2628.8,2628.2,6.26016]
[1724288738366,0.08715887,2628.6,2628.2,2.4553]
[1724288738561,0.08724271,2628.7,2628.2,2.4553]
[1724288738810,3.80391,2628.9,2628.2,6.26007]
[1724288739015,0.08715887,2628.6,2628.2,6.26007]
[1724288739311,0.0871191,2628.5,2628.2,6.26007]
[1724288739515,3.80391,2628.9,2628.2,6.26007]
[1724288739815,0.0873706,2628.8,2628.2,6.26007]
[1724288740507,3.8915006,2628.8,2628.2,2.4553]
[1724288741623,3.80424,2628.7,2628.2,2.4553]
[1724288741818,0.0873706,2628.8,2627.9,2.3117]
[1724288741819,3.80458,2628.5,2627.9,2.3117]
[1724288742028,3.80458,2628.5,2627.8,11.29536]
[1724288742029,0.380458,2628.4,2627.8,11.29536]
[1724288742168,0.46747122,2628.4,2627.7,2.4661]
[1724288742374,0.46747122,2628.4,2627.7,6.27158]
[1724288742375,3.89163322,2628.4,2627.7,6.27158]
[1724288742587,3.80462,2628.4,2627.7,10.07709]
[1724288742784,3.80455,2628.5,2627.7,6.27158]
[1724288742785,3.80474,2628.3,2627.7,6.27158]
[1724288742987,3.80474,2628.3,2627.7,10.07709]
[1724288742988,3.89169141,2628.3,2627.7,10.07709]
[1724288743815,3.89169141,2628.3,2627.8,3.80542]
[1724288744024,3.80519,2628.0,2627.4,3.80593]
[1724288744373,0.0862361,2627.9,2627.4,7.61185]
[1724288744574,0.48413942,2627.9,2627.4,7.61185]
[1724288745233,0.48413942,2627.9,2627.5,3.80586]
[1724288748198,0.39790332,2627.9,2627.5,3.80586]
[1724288748930,0.39790332,2627.9,2627.8,3.80546]
[1724288749083,0.48340874,2627.9,2627.8,3.80546]
[1724288749478,0.48340874,2627.9,2627.6,6.29604]
[1724288750132,0.48340874,2627.9,2627.7,3.8056]
[1724288751296,0.48340874,2627.9,2627.6,6.29604]
[1724288751501,0.48340874,2627.9,2627.6,3.80564]
[1724288753648,0.48340874,2627.9,2627.4,3.80597]
[1724288753843,4.28885874,2627.9,2627.3,6.19236]
[1724288754052,4.28885874,2627.9,2627.2,7.48864211]
[1724288754053,3.80571,2627.7,2627.2,7.48864211]
[1724288754349,0.08231583,2627.6,2627.2,7.48864211]
[1724288754498,3.80547,2627.8,2627.2,7.48864211]
[1724288754697,0.60859588,2627.7,2627.2,7.48864211]
[1724288754899,3.80584,2627.6,2627.2,7.48864211]
[1724288755145,0.08223517,2627.5,2627.2,7.48864211]
[1724288756497,0.08223517,2627.5,2627.3,2.4282]
[1724288756742,0.39790332,2627.9,2627.4,3.80604]
[1724288756914,0.08222461,2627.8,2627.4,3.80604]
[1724288758506,3.88769461,2627.8,2627.2,15.10109211]
[1724288759030,3.88769461,2627.8,2627.2,11.29484211]
[1724288759211,0.53359523,2627.7,2627.2,15.10109211]
[1724288759616,0.08207402,2627.6,2627.2,3.8062]
[1724288760068,0.47993315,2627.6,2627.2,3.8062]
[1724288760272,0.47993315,2627.6,2627.2,7.61244]
[1724288760479,0.47993315,2627.6,2627.2,3.8062]
[1724288760644,0.47993315,2627.6,2627.3,3.8061]
[1724288761747,0.47993315,2627.6,2627.4,3.80603]
[1724288761947,0.47993315,2627.6,2627.2,3.8062]
[1724288761948,0.47993315,2627.6,2627.3,0.07611545]
[1724288762188,0.39785913,2627.6,2627.5,3.80589]
[1724288762379,0.39785913,2627.6,2627.5,9.89208]
[1724288762535,0.39785913,2627.6,2627.5,14.24797]
[1724288762738,3.80438,2628.6,2628.0,3.80507]
[1724288763086,0.39783287,2628.3,2628.0,3.80507]
[1724288765572,0.07970359,2628.2,2628.0,3.80507]
[1724288765780,0.39783287,2628.3,2628.0,3.80507]
[1724288766311,0.07970468,2628.2,2628.0,3.80507]
[1724288766686,0.07970468,2628.2,2628.1,3.88112654]
[1724288766996,7.32278,2629.0,2628.1,3.88112654]
[1724288766997,3.80378,2629.0,2628.2,3.80488]
[1724288767280,3.80378,2629.0,2628.1,2.4052]
[1724288767281,0.39781933,2628.6,2628.5,3.80445]
[1724288767487,0.08072681,2628.9,2628.5,3.80445]
[1724288767693,0.47828409,2628.6,2628.5,3.80445]
[1724288767852,0.39780876,2628.6,2628.5,7.6089]
[1724288768053,0.39780876,2628.6,2628.5,10.70059]
[1724288768486,0.39780876,2628.6,2628.5,6.89614]
[1724288768690,0.39780876,2628.6,2628.5,9.9397]
[1724288768857,0.08096835,2628.6,2628.5,13.4897]
[1724288769063,0.3977571,2629.2,2629.0,9.90752]
[1724288769391,0.08130233,2629.1,2629.0,6.10386]
[1724288769563,0.08130233,2629.1,2629.0,3.80366]
[1724288769899,0.3977571,2629.2,2629.0,3.80366]
[1724288771214,0.3977571,2629.2,2628.9,3.80385]
[1724288771506,0.3977571,2629.2,2629.0,3.8037]
[1724288772003,0.3977571,2629.2,2628.8,3.80391]
[1724288772310,0.3977571,2629.2,2628.6,30.73283211]
[1724288772311,0.81784981,2629.2,2628.6,30.73283211]
[1724288772481,0.3977571,2629.2,2628.8,3.80399]
[1724288772811,0.08157846,2629.1,2628.9,3.80376]
[1724288772961,0.08157846,2629.1,2629.0,3.80372]
[1724288773161,0.3977571,2629.2,2629.1,3.80358]
[1724288773791,0.3977571,2629.2,2628.7,6.80409]
[1724288773999,0.47934723,2629.2,2628.7,3.99006586]
[1724288774210,0.3977571,2629.2,2628.8,2.3823]
[1724288774361,0.3977571,2629.2,2629.1,3.80358]
[1724288775410,0.3977571,2629.2,2629.1,7.60716]
[1724288776399,0.3977571,2629.2,2629.1,3.80358]
[1724288776973,0.47962658,2629.2,2628.9,7.60754]
[1724288777191,0.3977571,2629.2,2628.9,7.60754]
[1724288777512,0.3977571,2629.2,2628.9,3.80374]
[1724288777811,0.3977571,2629.2,2629.0,3.80367]
[1724288779081,0.3977571,2629.2,2629.1,3.80358]
[1724288779292,0.3977571,2629.2,2629.1,7.60716]
[1724288779719,0.3977571,2629.2,2629.1,10.02696]
[1724288781029,0.3977571,2629.2,2629.1,30.01696]
[1724288781352,0.3977571,2629.2,2629.1,14.86117254]
[1724288781494,3.80192,2630.3,2629.6,6.16228]
[1724288781495,3.80202,2630.2,2629.6,6.16228]
[1724288781697,0.39776915,2629.8,2629.7,3.87875961]
[1724288782030,2.353,2630.4,2629.6,6.16222]
[1724288782031,7.6039,2630.3,2629.6,9.96498]
[1724288782181,0.39780347,2629.8,2629.6,6.16222]
[1724288782386,3.80199,2630.2,2629.6,6.16222]
[1724288782637,0.08285191,2630.1,2629.7,3.80266]
[1724288782801,0.39780762,2629.8,2629.7,3.87870542]
[1724288782982,0.08285191,2630.1,2629.7,3.80266]
[1724288783181,0.39779191,2630.0,2629.7,3.80266]
[1724288783596,0.39779191,2630.0,2629.6,6.16222]
[1724288783796,0.39779191,2630.0,2629.6,9.96498]
[1724288783982,0.39779191,2630.0,2629.7,3.80266]
[1724288785041,0.39779191,2630.0,2629.6,6.16222]
[1724288785503,0.39779191,2630.0,2629.6,9.96499]
[1724288785920,1.0652731,2630.0,2629.3,11.29192211]
[1724288786254,1.0652731,2630.0,2629.3,7.48864211]
[1724288786255,6.27758,2629.8,2629.3,7.48864211]
[1724288786482,6.27758,2629.8,2629.2,23.24332]
[1724288786636,0.08251268,2629.7,2629.2,23.24332]
[1724288786837,0.08251268,2629.7,2629.3,3.80316]
[1724288787181,4.20014191,2630.0,2629.6,3.80285]
[1724288787182,0.39779191,2630.0,2629.6,3.80285]
[1724288787381,0.39779191,2630.0,2629.7,3.80269]
[1724288787567,0.08277694,2629.9,2629.7,3.80269]
[1724288788134,0.08277694,2629.9,2629.7,7.6053]
[1724288788342,0.08277694,2629.9,2629.7,3.80261]
[1724288788558,0.39779191,2630.0,2629.7,3.80261]
[1724288788891,0.39779191,2630.0,2629.3,3.8032]
[1724288788892,0.08312787,2629.9,2629.3,3.8032]
[1724288789072,0.08312787,2629.9,2629.3,3.80319]
[1724288789250,0.75895685,2629.9,2629.3,3.80319]
[1724288789457,0.08312787,2629.9,2629.4,3.80312]
[1724288791576,3.88556787,2629.9,2629.3,3.80319]
[1724288791771,0.08312787,2629.9,2629.4,3.80313]
[1724288793742,0.08312787,2629.9,2629.3,3.80319]
[1724288793993,0.51145685,2629.9,2629.3,3.80319]
[1724288794183,4.31389685,2629.9,2629.3,3.80319]
[1724288794596,0.51145685,2629.9,2629.3,3.80319]
[1724288794736,6.08257,2629.8,2629.1,28.70733]
[1724288794942,0.08263723,2629.7,2629.3,3.80319]
[1724288795336,3.35941888,2629.8,2629.3,3.80319]
[1724288795740,0.08266034,2629.7,2629.3,3.80319]
[1724288795976,3.35941888,2629.8,2629.3,3.80319]
[1724288796291,0.08268644,2629.7,2629.1,28.70727]